[Event "Early-Titled-Tuesday-Blitz-January-23-2024"]
[Site "Chess.com"]
[Date "2024.01.23"]
[Round "3"]
[White "eagleclaw07"]
[Black "Jesseinkman"]
[Result "0-1"]
[WhiteElo "2628"]
[BlackElo "2472"]
[TimeControl "180+1"]
[EndTime "8:29:33 PST"]
[Termination "Jesseinkman won by resignation"]

1. d4 {[%clk 0:02:26.3]} 1... d5 {[%clk 0:02:59.1]} 2. Nf3 {[%clk 0:02:26.7]}
2... Nf6 {[%clk 0:02:58.9]} 3. c4 {[%clk 0:02:27.4]} 3... e6 {[%clk 0:02:58.9]}
4. Nc3 {[%clk 0:02:27.9]} 4... Be7 {[%clk 0:02:59]} 5. Bf4 {[%clk 0:02:28.5]}
5... O-O {[%clk 0:02:58.3]} 6. e3 {[%clk 0:02:29]} 6... a6 {[%clk 0:02:57.6]} 7.
h3 {[%clk 0:02:27.2]} 7... dxc4 {[%clk 0:02:57.5]} 8. Bxc4 {[%clk 0:02:28.1]}
8... b5 {[%clk 0:02:57.9]} 9. Be2 {[%clk 0:02:28.6]} 9... Bb7 {[%clk 0:02:58.5]}
10. O-O {[%clk 0:02:28.7]} 10... Nbd7 {[%clk 0:02:59.2]} 11. Rc1 {[%clk
0:02:27.6]} 11... c5 {[%clk 0:02:59.5]} 12. Ne5 {[%clk 0:02:21.1]} 12... Nxe5
{[%clk 0:02:53.3]} 13. Bxe5 {[%clk 0:02:22]} 13... cxd4 {[%clk 0:02:46.1]} 14.
Qxd4 {[%clk 0:02:20.9]} 14... Qxd4 {[%clk 0:02:44.4]} 15. Bxd4 {[%clk
0:02:21.8]} 15... Rac8 {[%clk 0:02:41]} 16. Rfd1 {[%clk 0:02:18.2]} 16... Nd5
{[%clk 0:02:36.3]} 17. Bf3 {[%clk 0:02:05.2]} 17... Nxc3 {[%clk 0:02:33]} 18.
Rxc3 {[%clk 0:02:01.9]} 18... Bxf3 {[%clk 0:02:28.6]} 19. gxf3 {[%clk
0:02:02.8]} 19... Rxc3 {[%clk 0:02:10]} 20. Bxc3 {[%clk 0:02:02.1]} 20... Rd8
{[%clk 0:02:10.2]} 21. Rxd8+ {[%clk 0:01:58.7]} 21... Bxd8 {[%clk 0:02:11.1]}
22. Kf1 {[%clk 0:01:58.7]} 22... f6 {[%clk 0:02:08.1]} 23. f4 {[%clk 0:01:57.7]}
23... Kf7 {[%clk 0:02:08]} 24. Ke2 {[%clk 0:01:58.1]} 24... Kg6 {[%clk
0:01:57.9]} 25. Kf3 {[%clk 0:01:57.1]} 25... Kh5 {[%clk 0:01:56.3]} 26. Kg3
{[%clk 0:01:52.3]} 26... Bc7 {[%clk 0:01:52.8]} 27. Bd4 {[%clk 0:01:51.7]} 27...
e5 {[%clk 0:01:47.5]} 28. fxe5 {[%clk 0:01:49.6]} 28... fxe5 {[%clk 0:01:43.3]}
29. Bc5 {[%clk 0:01:48.6]} 29... e4+ {[%clk 0:01:43]} 30. Kg2 {[%clk 0:01:48.1]}
30... Kg5 {[%clk 0:01:39.1]} 31. Bd4 {[%clk 0:01:43.5]} 31... g6 {[%clk
0:01:37.6]} 32. Kf1 {[%clk 0:01:37.3]} 32... h5 {[%clk 0:01:36.3]} 33. Kg2
{[%clk 0:01:33.9]} 33... Bd6 {[%clk 0:01:36.4]} 34. Bc3 {[%clk 0:01:31.5]} 34...
Bc5 {[%clk 0:01:34.2]} 35. Be5 {[%clk 0:01:31.5]} 35... a5 {[%clk 0:01:34]} 36.
Bf4+ {[%clk 0:01:27.3]} 36... Kf5 {[%clk 0:01:33.1]} 37. Bc7 {[%clk 0:01:27.3]}
37... a4 {[%clk 0:01:33]} 38. b3 {[%clk 0:01:26]} 38... axb3 {[%clk 0:01:26.2]}
39. axb3 {[%clk 0:01:26.9]} 39... Be7 {[%clk 0:01:22.9]} 40. Kf1 {[%clk
0:01:26.9]} 40... Bh4 {[%clk 0:01:16]} 41. Ke2 {[%clk 0:01:22.4]} 41... Ke6
{[%clk 0:01:15.8]} 42. Ba5 {[%clk 0:01:00.8]} 42... Kd5 {[%clk 0:01:15.1]} 43.
Be1 {[%clk 0:01:01.2]} 43... Bf6 {[%clk 0:01:06.6]} 44. Bb4 {[%clk 0:00:57.8]}
44... Be5 {[%clk 0:01:06.8]} 45. Kd2 {[%clk 0:00:53.6]} 45... g5 {[%clk
0:00:56.3]} 46. Ke2 {[%clk 0:00:52.3]} 46... Ke6 {[%clk 0:00:54.8]} 47. Kf1
{[%clk 0:00:44]} 47... Kf5 {[%clk 0:00:48.6]} 48. Kg2 {[%clk 0:00:43.4]} 48...
Bc7 {[%clk 0:00:48.3]} 49. Bc5 {[%clk 0:00:42.7]} 49... Bd8 {[%clk 0:00:47.2]}
50. Bd4 {[%clk 0:00:41.9]} 50... Ke6 {[%clk 0:00:47.4]} 51. Bc3 {[%clk
0:00:36.2]} 51... Kd5 {[%clk 0:00:46.7]} 52. Bd4 {[%clk 0:00:28.7]} 52... Be7
{[%clk 0:00:43.8]} 53. Bb2 {[%clk 0:00:27.8]} 53... Bd8 {[%clk 0:00:35.8]} 54.
Ba3 {[%clk 0:00:27.8]} 54... Ke6 {[%clk 0:00:31.6]} 55. Kf1 {[%clk 0:00:24.4]}
55... Kf5 {[%clk 0:00:29.5]} 56. Kg1 {[%clk 0:00:23.9]} 56... g4 {[%clk
0:00:29.1]} 57. Kg2 {[%clk 0:00:23.4]} 57... Bb6 {[%clk 0:00:26.7]} 58. Be7
{[%clk 0:00:20.9]} 58... Ba5 {[%clk 0:00:26.6]} 59. h4 {[%clk 0:00:20.3]} 59...
Bc7 {[%clk 0:00:25]} 60. Bg5 {[%clk 0:00:20.1]} 60... Ke6 {[%clk 0:00:24.8]} 61.
Kf1 {[%clk 0:00:16.5]} 61... Kd5 {[%clk 0:00:25.1]} 62. Ke2 {[%clk 0:00:16.9]}
62... Kc5 {[%clk 0:00:24.2]} 63. Be7+ {[%clk 0:00:16.7]} 63... Kd5 {[%clk
0:00:24.2]} 64. Kf1 {[%clk 0:00:12.4]} 64... Be5 {[%clk 0:00:24.1]} 65. Kg2
{[%clk 0:00:12.2]} 65... Bg7 {[%clk 0:00:24]} 66. Bg5 {[%clk 0:00:10.6]} 66...
Ke6 {[%clk 0:00:23.7]} 67. Bd8 {[%clk 0:00:10.7]} 67... Bf8 {[%clk 0:00:23.3]}
68. Bg5 {[%clk 0:00:10.9]} 68... Kd5 {[%clk 0:00:23.7]} 69. Kg3 {[%clk
0:00:10.5]} 69... Kc5 {[%clk 0:00:22.4]} 70. Kf4 {[%clk 0:00:10.6]} 70... Kb4
{[%clk 0:00:22.8]} 71. Kxe4 {[%clk 0:00:10.9]} 71... Kxb3 {[%clk 0:00:23.3]} 72.
Kd5 {[%clk 0:00:11]} 72... b4 {[%clk 0:00:23]} 73. e4 {[%clk 0:00:11.1]} 73...
Kc2 {[%clk 0:00:22.9]} 74. Bf6 {[%clk 0:00:08.3]} 74... b3 {[%clk 0:00:23]} 75.
Bd4 {[%clk 0:00:08.2]} 75... b2 {[%clk 0:00:21.4]} 76. Bxb2 {[%clk 0:00:08]}
76... Kxb2 {[%clk 0:00:22.3]} 77. e5 {[%clk 0:00:08.6]} 77... Kc2 {[%clk
0:00:22.9]} 78. Ke6 {[%clk 0:00:08.6]} 78... Kd3 {[%clk 0:00:22.8]} 79. Kf7
{[%clk 0:00:08.7]} 79... Bc5 {[%clk 0:00:22.4]} 80. Kg6 {[%clk 0:00:05.9]} 80...
Bxf2 {[%clk 0:00:22.1]} 81. e6 {[%clk 0:00:05.5]} 81... Bc5 {[%clk 0:00:21.2]}
82. Kxh5 {[%clk 0:00:05.5]} 82... g3 {[%clk 0:00:21.5]} 83. Kg6 {[%clk
0:00:04.5]} 83... g2 {[%clk 0:00:21.7]} 84. h5 {[%clk 0:00:04.7]} 84... g1=Q+
{[%clk 0:00:22.1]} 85. Kh7 {[%clk 0:00:05.3]} 85... Qg5 {[%clk 0:00:21.7]} 86.
h6 {[%clk 0:00:05.7]} 86... Be7 {[%clk 0:00:20.5]} 87. Kh8 {[%clk 0:00:05.4]}
87... Qg6 {[%clk 0:00:20.1]} 0-1

[Event "Early-Titled-Tuesday-Blitz-January-23-2024"]
[Site "Chess.com"]
[Date "2024.01.23"]
[Round "3"]
[White "karenzc"]
[Black "BJthechessgod"]
[Result "1-0"]
[WhiteElo "2198"]
[BlackElo "2405"]
[TimeControl "180+1"]
[EndTime "8:29:35 PST"]
[Termination "karenzc won by resignation"]

1. e4 {[%clk 0:02:59.5]} 1... c5 {[%clk 0:02:59.6]} 2. Nc3 {[%clk 0:02:56.2]}
2... Nc6 {[%clk 0:02:57.9]} 3. d3 {[%clk 0:02:52.5]} 3... g6 {[%clk 0:02:54.3]}
4. f4 {[%clk 0:02:50.4]} 4... Bg7 {[%clk 0:02:53]} 5. Nf3 {[%clk 0:02:50.3]}
5... e6 {[%clk 0:02:46.8]} 6. Be3 {[%clk 0:02:49.2]} 6... d6 {[%clk 0:02:45]} 7.
d4 {[%clk 0:02:49]} 7... cxd4 {[%clk 0:02:42.3]} 8. Nxd4 {[%clk 0:02:49.1]} 8...
Nge7 {[%clk 0:02:43.1]} 9. Ndb5 {[%clk 0:02:46.8]} 9... d5 {[%clk 0:02:36]} 10.
e5 {[%clk 0:02:41.9]} 10... Nf5 {[%clk 0:02:36.2]} 11. Bc5 {[%clk 0:02:33.8]}
11... b6 {[%clk 0:02:21.6]} 12. Nd6+ {[%clk 0:02:32]} 12... Nxd6 {[%clk
0:02:15.3]} 13. Bxd6 {[%clk 0:02:32.1]} 13... Bb7 {[%clk 0:02:14.2]} 14. Nb5
{[%clk 0:02:29.8]} 14... Rc8 {[%clk 0:01:52.9]} 15. Ba3 {[%clk 0:02:26]} 15...
Bf8 {[%clk 0:01:42.3]} 16. Bxf8 {[%clk 0:02:23.3]} 16... Kxf8 {[%clk 0:01:43.2]}
17. Nd6 {[%clk 0:02:23.3]} 17... Rc7 {[%clk 0:01:40.4]} 18. Bb5 {[%clk
0:02:21.8]} 18... Ne7 {[%clk 0:01:28.3]} 19. g4 {[%clk 0:02:12]} 19... Nc8
{[%clk 0:01:07.2]} 20. Nxb7 {[%clk 0:02:00.5]} 20... Qh4+ {[%clk 0:01:01.6]} 21.
Kf1 {[%clk 0:01:50.9]} 21... Rxb7 {[%clk 0:00:54.9]} 22. Qf3 {[%clk 0:01:48.7]}
22... Rc7 {[%clk 0:00:47.9]} 23. c3 {[%clk 0:01:47.4]} 23... h5 {[%clk
0:00:30.8]} 24. g5 {[%clk 0:01:43.5]} 24... Ne7 {[%clk 0:00:28.7]} 25. Bd3
{[%clk 0:01:17.1]} 25... Nf5 {[%clk 0:00:21.2]} 26. Ke2 {[%clk 0:01:04.6]} 26...
Qg4 {[%clk 0:00:13.5]} 27. Rhg1 {[%clk 0:00:58.2]} 27... Qxf3+ {[%clk
0:00:12.1]} 28. Kxf3 {[%clk 0:00:58]} 28... Kg7 {[%clk 0:00:05.5]} 29. a4 {[%clk
0:00:57.9]} 29... a5 {[%clk 0:00:04.9]} 30. Rad1 {[%clk 0:00:56.4]} 30... Rhc8
{[%clk 0:00:05.4]} 31. Bxf5 {[%clk 0:00:52.9]} 31... gxf5 {[%clk 0:00:05.2]} 32.
Rd4 {[%clk 0:00:52.6]} 32... Rc4 {[%clk 0:00:05.2]} 33. Ke3 {[%clk 0:00:52.6]}
33... Kg6 {[%clk 0:00:04.7]} 34. Rgd1 {[%clk 0:00:51.5]} 34... h4 {[%clk
0:00:02.9]} 35. h3 {[%clk 0:00:51.7]} 35... Kh5 {[%clk 0:00:03.1]} 36. Rxc4
{[%clk 0:00:50.7]} 36... Rxc4 {[%clk 0:00:03.6]} 37. Rd4 {[%clk 0:00:49.5]}
37... Rc5 {[%clk 0:00:03.8]} 38. Kd3 {[%clk 0:00:48.6]} 38... Kg6 {[%clk
0:00:04.2]} 39. b4 {[%clk 0:00:48.8]} 39... axb4 {[%clk 0:00:04.1]} 40. Rxb4
{[%clk 0:00:48.7]} 40... Ra5 {[%clk 0:00:02.7]} 41. Kc2 {[%clk 0:00:45.8]} 41...
Ra6 {[%clk 0:00:01.8]} 42. Kb3 {[%clk 0:00:45.9]} 42... Kg7 {[%clk 0:00:02.2]}
43. c4 {[%clk 0:00:45.1]} 43... d4 {[%clk 0:00:01]} 44. Kc2 {[%clk 0:00:43.7]}
44... Kf8 {[%clk 0:00:01.8]} 45. Kd3 {[%clk 0:00:44.1]} 45... Ke7 {[%clk
0:00:02.6]} 46. Kxd4 {[%clk 0:00:44.6]} 46... Kd7 {[%clk 0:00:03.4]} 47. Kc3
{[%clk 0:00:44.9]} 47... Kc6 {[%clk 0:00:04.1]} 48. Kb3 {[%clk 0:00:45.8]} 48...
Kc5 {[%clk 0:00:04.8]} 49. Rb5+ {[%clk 0:00:46]} 49... Kd4 {[%clk 0:00:05.5]}
50. Kb4 {[%clk 0:00:45.1]} 50... Ke4 {[%clk 0:00:06]} 51. c5 {[%clk 0:00:44.5]}
51... bxc5+ {[%clk 0:00:06.2]} 52. Rxc5 {[%clk 0:00:44.9]} 52... Kxf4 {[%clk
0:00:06.7]} 53. a5 {[%clk 0:00:43.8]} 53... Kxg5 {[%clk 0:00:06.5]} 54. Kb5
{[%clk 0:00:43.8]} 54... Ra8 {[%clk 0:00:06.9]} 55. Rc7 {[%clk 0:00:43.7]} 55...
f4 {[%clk 0:00:07.3]} 56. Rxf7 {[%clk 0:00:43.1]} 56... Rd8 {[%clk 0:00:06.8]}
57. a6 {[%clk 0:00:43]} 57... Rd5+ {[%clk 0:00:07.4]} 58. Kb6 {[%clk 0:00:42.9]}
58... Rd1 {[%clk 0:00:05.4]} 59. a7 {[%clk 0:00:40.2]} 59... Rb1+ {[%clk
0:00:05.6]} 60. Kc6 {[%clk 0:00:40.2]} 60... Rc1+ {[%clk 0:00:06]} 61. Kb7
{[%clk 0:00:38.9]} 61... Rb1+ {[%clk 0:00:06.2]} 62. Kc6 {[%clk 0:00:38.8]}
62... Ra1 {[%clk 0:00:05.6]} 63. Kd6 {[%clk 0:00:36.1]} 63... Ra6+ {[%clk
0:00:05.7]} 64. Kc5 {[%clk 0:00:35.3]} 64... Ra2 {[%clk 0:00:03.2]} 65. Kb6
{[%clk 0:00:32.8]} 65... Rb2+ {[%clk 0:00:03.4]} 66. Kc7 {[%clk 0:00:32.5]}
66... Ra2 {[%clk 0:00:02.9]} 67. Kb8 {[%clk 0:00:32.7]} 67... Rb2+ {[%clk
0:00:03.2]} 68. Rb7 {[%clk 0:00:31.7]} 68... Ra2 {[%clk 0:00:01.5]} 69. a8=Q
{[%clk 0:00:31.3]} 69... Rxa8+ {[%clk 0:00:01.5]} 70. Kxa8 {[%clk 0:00:31.2]}
70... Kf5 {[%clk 0:00:01.8]} 71. Rh7 {[%clk 0:00:28.5]} 71... Kxe5 {[%clk
0:00:01.9]} 72. Rxh4 {[%clk 0:00:29]} 72... f3 {[%clk 0:00:02.4]} 73. Rh7 {[%clk
0:00:29.4]} 73... Kf4 {[%clk 0:00:02.3]} 74. Rf7+ {[%clk 0:00:29.5]} 74... Kg3
{[%clk 0:00:02.8]} 75. h4 {[%clk 0:00:29.8]} 75... e5 {[%clk 0:00:02.6]} 76. h5
{[%clk 0:00:30.3]} 76... e4 {[%clk 0:00:03.4]} 77. h6 {[%clk 0:00:30.9]} 77...
e3 {[%clk 0:00:03.7]} 78. h7 {[%clk 0:00:29.6]} 78... f2 {[%clk 0:00:03.4]} 79.
h8=Q {[%clk 0:00:29.4]} 79... e2 {[%clk 0:00:03.4]} 80. Qg7+ {[%clk 0:00:29.4]}
80... Kh2 {[%clk 0:00:03.9]} 81. Qh6+ {[%clk 0:00:29.4]} 81... Kg1 {[%clk
0:00:03.8]} 82. Qg5+ {[%clk 0:00:29.8]} 82... Kf1 {[%clk 0:00:04.7]} 83. Qb5
{[%clk 0:00:24.9]} 83... Ke1 {[%clk 0:00:02.4]} 84. Qb1+ {[%clk 0:00:21.6]}
84... Kd2 {[%clk 0:00:02.6]} 85. Rd7+ {[%clk 0:00:21.8]} 85... Ke3 {[%clk
0:00:02.7]} 86. Qd3+ {[%clk 0:00:20.9]} 86... Kf4 {[%clk 0:00:03.3]} 87. Qxe2
{[%clk 0:00:21.1]} 1-0

[Event "Early-Titled-Tuesday-Blitz-January-23-2024"]
[Site "Chess.com"]
[Date "2024.01.23"]
[Round "3"]
[White "ukchessbomber"]
[Black "Bauman_Guy"]
[Result "1/2-1/2"]
[WhiteElo "2664"]
[BlackElo "2889"]
[TimeControl "180+1"]
[EndTime "8:29:39 PST"]
[Termination "Game drawn by repetition"]

1. c4 {[%clk 0:03:00.4]} 1... Nf6 {[%clk 0:03:00]} 2. b3 {[%clk 0:03:00.3]} 2...
g6 {[%clk 0:02:59.9]} 3. Bb2 {[%clk 0:03:00.9]} 3... Bg7 {[%clk 0:03:00.7]} 4.
e3 {[%clk 0:03:01.3]} 4... O-O {[%clk 0:03:01.3]} 5. Nf3 {[%clk 0:03:01.9]} 5...
a5 {[%clk 0:03:01.4]} 6. Be2 {[%clk 0:03:01.2]} 6... d6 {[%clk 0:03:01.6]} 7. d4
{[%clk 0:03:01.3]} 7... Re8 {[%clk 0:03:01.5]} 8. O-O {[%clk 0:03:01.6]} 8...
Nbd7 {[%clk 0:03:01.6]} 9. d5 {[%clk 0:02:59.5]} 9... e5 {[%clk 0:03:01.2]} 10.
dxe6 {[%clk 0:02:59.4]} 10... fxe6 {[%clk 0:03:01.7]} 11. Nc3 {[%clk 0:02:59.7]}
11... e5 {[%clk 0:03:01.8]} 12. a3 {[%clk 0:02:59]} 12... Kh8 {[%clk 0:02:57.1]}
13. b4 {[%clk 0:02:59.3]} 13... Qe7 {[%clk 0:02:56.3]} 14. Rc1 {[%clk
0:02:57.5]} 14... axb4 {[%clk 0:02:54.8]} 15. axb4 {[%clk 0:02:57.8]} 15... Nf8
{[%clk 0:02:52.8]} 16. Nd5 {[%clk 0:02:56.8]} 16... Nxd5 {[%clk 0:02:49.8]} 17.
cxd5 {[%clk 0:02:57.7]} 17... b6 {[%clk 0:02:43.8]} 18. Bb5 {[%clk 0:02:26]}
18... Rd8 {[%clk 0:02:42]} 19. Bc6 {[%clk 0:02:26.3]} 19... Ra7 {[%clk
0:02:40.6]} 20. Ra1 {[%clk 0:02:26.7]} 20... Rxa1 {[%clk 0:02:40.2]} 21. Qxa1
{[%clk 0:02:27.6]} 21... g5 {[%clk 0:02:36.6]} 22. Rc1 {[%clk 0:02:26.2]} 22...
g4 {[%clk 0:02:35.8]} 23. Nd2 {[%clk 0:02:26.4]} 23... Ng6 {[%clk 0:02:35.9]}
24. Qa7 {[%clk 0:02:24.6]} 24... Rf8 {[%clk 0:02:35.8]} 25. Bb5 {[%clk
0:02:11.6]} 25... Qh4 {[%clk 0:02:16.2]} 26. Ne4 {[%clk 0:01:55.9]} 26... Bf5
{[%clk 0:02:14.1]} 27. Ng3 {[%clk 0:01:50.3]} 27... Qf6 {[%clk 0:02:03.3]} 28.
Nh5 {[%clk 0:01:22.9]} 28... Qh4 {[%clk 0:01:47.4]} 29. Nxg7 {[%clk 0:01:22.8]}
29... Be4 {[%clk 0:01:19]} 30. Rf1 {[%clk 0:00:49.1]} 30... Bxg2 {[%clk
0:01:14.8]} 31. Ne6 {[%clk 0:00:13.8]} 31... Bxf1 {[%clk 0:00:56]} 32. Nxf8
{[%clk 0:00:13.9]} 32... Bxb5 {[%clk 0:00:56]} 33. Nxg6+ {[%clk 0:00:14]} 33...
hxg6 {[%clk 0:00:56.9]} 34. Qb8+ {[%clk 0:00:14.6]} 34... Kh7 {[%clk 0:00:47.9]}
35. Qxc7+ {[%clk 0:00:14.9]} 35... Kh6 {[%clk 0:00:48.5]} 36. Qxd6 {[%clk
0:00:12]} 36... Qh3 {[%clk 0:00:32.3]} 37. Qf8+ {[%clk 0:00:11.7]} 37... Kg5
{[%clk 0:00:32.7]} 38. Qe7+ {[%clk 0:00:08.8]} 38... Kh6 {[%clk 0:00:32.8]} 39.
Qf8+ {[%clk 0:00:08.6]} 39... Kg5 {[%clk 0:00:31.8]} 40. Qd8+ {[%clk 0:00:08.1]}
40... Kf5 {[%clk 0:00:22]} 41. Qc8+ {[%clk 0:00:04.6]} 41... Ke4 {[%clk
0:00:20.6]} 42. Qc2+ {[%clk 0:00:05.2]} 42... Bd3 {[%clk 0:00:20.9]} 43. Qd1
{[%clk 0:00:04.9]} 43... Qh7 {[%clk 0:00:10.8]} 44. d6 {[%clk 0:00:02.9]} 44...
Qd7 {[%clk 0:00:11.4]} 45. Bc3 {[%clk 0:00:01.6]} 45... b5 {[%clk 0:00:11.6]}
46. Kg2 {[%clk 0:00:02.1]} 46... Qxd6 {[%clk 0:00:07.2]} 47. Kg3 {[%clk
0:00:02.2]} 47... Kd5 {[%clk 0:00:08.1]} 48. Qxg4 {[%clk 0:00:02.3]} 48... e4+
{[%clk 0:00:06.3]} 49. Qf4 {[%clk 0:00:02.9]} 49... Qd7 {[%clk 0:00:04.6]} 50.
Qe5+ {[%clk 0:00:02.8]} 50... Kc4 {[%clk 0:00:04.8]} 51. Qc5+ {[%clk 0:00:03.5]}
51... Kb3 {[%clk 0:00:04.9]} 52. Be5 {[%clk 0:00:04]} 52... Ka4 {[%clk
0:00:04.1]} 53. Qc3 {[%clk 0:00:04.2]} 53... Qd5 {[%clk 0:00:04.2]} 54. Bd4
{[%clk 0:00:04.1]} 54... Qb3 {[%clk 0:00:03]} 55. Qc8 {[%clk 0:00:02.9]} 55...
Ka3 {[%clk 0:00:02.4]} 56. Qa8+ {[%clk 0:00:03]} 56... Qa4 {[%clk 0:00:02.9]}
57. Qf8 {[%clk 0:00:02.4]} 57... Kb3 {[%clk 0:00:03.4]} 58. Bc5 {[%clk
0:00:02.6]} 58... Kc2 {[%clk 0:00:03.9]} 59. Kf4 {[%clk 0:00:03.1]} 59... Qa2
{[%clk 0:00:03.5]} 60. Ke5 {[%clk 0:00:03.3]} 60... Kd1 {[%clk 0:00:03.8]} 61.
Kd6 {[%clk 0:00:03.8]} 61... Qc4 {[%clk 0:00:03.8]} 62. Qf6 {[%clk 0:00:04.2]}
62... Ke2 {[%clk 0:00:04.1]} 63. Qxg6 {[%clk 0:00:04.8]} 63... Kxf2 {[%clk
0:00:04.7]} 64. h4 {[%clk 0:00:05.3]} 64... Qa2 {[%clk 0:00:03.8]} 65. Qf5+
{[%clk 0:00:05.8]} 65... Ke2 {[%clk 0:00:03.5]} 66. h5 {[%clk 0:00:06.7]} 66...
Qa6+ {[%clk 0:00:03.2]} 67. Ke5 {[%clk 0:00:06.2]} 67... Qc6 {[%clk 0:00:02.7]}
68. Qe6 {[%clk 0:00:05.7]} 68... Qa8 {[%clk 0:00:01.7]} 69. h6 {[%clk
0:00:05.9]} 69... Qh8+ {[%clk 0:00:02.4]} 70. Kf5 {[%clk 0:00:06.4]} 70... Bc4
{[%clk 0:00:02.3]} 71. Qf6 {[%clk 0:00:05.9]} 71... Qh7+ {[%clk 0:00:02.4]} 72.
Kf4 {[%clk 0:00:06.1]} 72... Qd7 {[%clk 0:00:02.3]} 73. Bd6 {[%clk 0:00:06.3]}
73... Qh3 {[%clk 0:00:02.5]} 74. Ke5 {[%clk 0:00:06]} 74... Qh5+ {[%clk
0:00:02.5]} 75. Kf4 {[%clk 0:00:03.8]} 75... Qh2+ {[%clk 0:00:02.4]} 76. Kf5
{[%clk 0:00:03.8]} 76... Qh5+ {[%clk 0:00:03.1]} 77. Kf4 {[%clk 0:00:04.1]}
77... Qh2+ {[%clk 0:00:03.3]} 78. Kg5 {[%clk 0:00:04.8]} 78... Qg2+ {[%clk
0:00:03.3]} 79. Kf5 {[%clk 0:00:05.1]} 79... Qh3+ {[%clk 0:00:03.7]} 80. Kg6
{[%clk 0:00:05]} 80... Qg4+ {[%clk 0:00:04.3]} 81. Qg5 {[%clk 0:00:04.3]} 81...
Qe6+ {[%clk 0:00:04.5]} 82. Qf6 {[%clk 0:00:02.8]} 82... Qg4+ {[%clk 0:00:05.1]}
83. Qg5 {[%clk 0:00:03.4]} 83... Qe6+ {[%clk 0:00:05]} 84. Kh5 {[%clk
0:00:03.2]} 84... Qh3+ {[%clk 0:00:05]} 85. Kg6 {[%clk 0:00:02.4]} 85... Qe6+
{[%clk 0:00:04.4]} 1/2-1/2